fUSD/lending_fUSD_20241029
["ID","MTS","AMOUNT","RATE_DAILY","PERIOD"]
[340976575,1730199137850,-151.0,0.00022,7]
[340976576,1730199137902,-151.0,0.00022,7]
[340976577,1730199137953,-176.0,0.00022,2]
[340976578,1730199138085,-151.0,0.00022,7]
[340976579,1730199138137,-582.033102,0.00022,7]
[340976580,1730199138185,-151.0,0.00022,7]
[340976581,1730199138237,-151.0,0.00022,7]
[340976582,1730199138291,-582.033102,0.00022,7]
[340976583,1730199138343,-151.0,0.00022,7]
[340976584,1730199138395,-151.0,0.00022,7]
[340976585,1730199138449,-151.0,0.00022,7]
[340976586,1730199138502,-174.615388,0.00022,7]
[340976587,1730199138553,-151.0,0.00022,7]
[340976588,1730199138605,-151.0,0.00022,7]
[340976589,1730199138656,-151.0,0.00022,7]
[340976590,1730199138707,-151.0,0.00022,7]
[340976591,1730199138755,-151.0,0.00022,7]
[340976592,1730199138883,-561.0,0.00022049,2]
[340976593,1730199138934,-451.0,0.00022049,2]
[340976594,1730199138982,-1248.0,0.00022049,2]
[340976595,1730199139031,-557.0,0.00022049,2]
[340976596,1730199139079,-1982.0,0.00022049,2]
[340976597,1730199139127,-3367.0,0.00022049,2]
[340976598,1730199139175,-1914.0,0.00022049,2]
[340976599,1730199139224,-1251.0,0.00022049,2]
[340976600,1730199139272,-811.0,0.00022049,2]
[340976601,1730199139320,-807.0,0.00022049,2]
[340976602,1730199139369,-2971.1717036,0.00022059,2]
[340976603,1730199139417,-228.65073858,0.0002211,2]
[340976604,1730199139470,-27000.0,0.0002222,2]
[340976605,1730199139520,-151.0,0.0002222,7]
[340976606,1730199139568,-229.984422,0.0002222,7]
[340976607,1730199139692,-151.0,0.0002222,7]
[340976608,1730199139740,-151.0,0.0002222,7]
[340976609,1730199139787,-151.0,0.0002222,7]
[340976610,1730199139834,-238.068554,0.0002222,7]
[340976611,1730199139882,-151.0,0.0002222,7]
[340976612,1730199139930,-151.0,0.0002222,7]
[340976613,1730199139980,-185.363195,0.0002222,7]
[340976614,1730199140028,-151.0,0.0002222,7]
[340976615,1730199140076,-151.0,0.0002222,7]
[340976616,1730199140123,-165.49,0.00022278,2]
[340976617,1730199140171,-169.62,0.00022325,2]
[340976618,1730199140219,-1154.0,0.00022412,2]
[340976619,1730199140267,-5903.0,0.00022412,2]
[340976620,1730199140314,-13571.0,0.00022412,2]
[340976621,1730199140361,-150.0,0.00022412,2]
[340976622,1730199140482,-150.0,0.00022412,2]
[340976623,1730199140530,-1087.0,0.00022412,2]
[340976624,1730199140584,-150.0,0.00022449,2]
[340976625,1730199140638,-196.73,0.00022466,2]
[340976626,1730199140686,-182.29681287,0.0002263,2]
[340976627,1730199140734,-150.8,0.00022945,2]
[340976628,1730199140784,-509.63,0.00023,7]
[340976629,1730199140832,-320.0,0.00023,10]
[340976630,1730199140880,-750.0,0.00023,2]
[340976631,1730199140929,-151.0,0.00023,7]
[340976632,1730199140979,-151.0,0.00023,7]
[340976633,1730199141029,-582.033102,0.00023,7]
[340976634,1730199141078,-151.0,0.00023,7]
[340976635,1730199141127,-151.0,0.00023,7]
[340976636,1730199141175,-582.033102,0.00023,7]
[340976637,1730199141302,-151.0,0.00023,7]
[340976638,1730199141352,-500.0,0.00023085,2]
[340976639,1730199141402,-525.54,0.00023124,2]
[340976640,1730199141452,-1000.0,0.00023182,2]
[340976641,1730199141499,-7351.37734507,0.000232,2]
[340976642,1730199141548,-151.0,0.000232,7]
[340976643,1730199141596,-241.737196,0.000232,7]
[340976644,1730199141644,-241.737196,0.000232,7]
[340976645,1730199141698,-165.49,0.00023291,2]
[340976646,1730199141749,-182.39,0.0002333,2]
[340976647,1730199141797,-312.0,0.00023726,2]
[340976648,1730199141844,-606.0,0.00023726,2]
[340976649,1730199141892,-219.0,0.00023726,2]
[340976650,1730199141942,-1045.61579597,0.00023726,2]
[340976651,1730199142073,-166.0,0.00023732,2]
[340976652,1730199142121,-167.5,0.00023732,2]
[340976653,1730199142169,-161299.96279367,0.00023922,2]
[340976654,1730199142222,-151.0,0.00023922,7]
[340976655,1730199142271,-241.737196,0.00023922,7]
[340976656,1730199142320,-241.737196,0.00023922,7]
[340976657,1730199142369,-151.0,0.00023922,7]
[340976658,1730199142418,-151.0,0.00023922,7]
[340976659,1730199142466,-275.501332,0.00023922,7]
[340976660,1730199142513,-198.715231,0.00023922,7]
[340976661,1730199142561,-151.0,0.00023922,7]
[340976662,1730199142608,-200.37689,0.00023922,7]
[340976663,1730199142657,-582.033102,0.00023922,7]
[340976664,1730199142706,-151.0,0.00023922,7]
[340976665,1730199142754,-582.033102,0.00023922,7]
[340976666,1730199142880,-151.0,0.00023922,7]
[340976667,1730199142931,-151.0,0.00023922,7]
[340976668,1730199142983,-151.0,0.00023922,7]
[340976669,1730199143034,-151.0,0.00023922,7]
[340976670,1730199143086,-151.0,0.00023922,7]
[340976671,1730199143135,-188.71583433,0.00024,30]
[340976672,1730199143184,-400.86911001,0.0002421,2]
[340976673,1730199143233,-775.97089393,0.0002425,2]
[340976674,1730199143283,-157.19,0.00024267,2]
[340976675,1730199143332,-165.49,0.00024303,2]
[340976676,1730199143382,-169.62,0.00024354,2]
[340976677,1730199143430,-336.69851303,0.0002442,2]
[340976678,1730199143479,-246.9,0.00024658,4]
[340976679,1730199143527,-1000.0,0.00024658,2]
[340976680,1730199143575,-13242.36,0.00024658,2]
[340976681,1730199143702,-9787.97,0.00024741,120]
[340976682,1730199143751,-182.39,0.00024775,2]
[340976683,1730199143802,-229.96,0.00024877,30]
[340976684,1730199143851,-65487.21146644,0.00025,2]
[340976685,1730199143902,-8060.50689482,0.00025,2]
[340976686,1730199143952,-281.26893407,0.00025,2]
[340976687,1730199144002,-800.0,0.00025,2]
[340976688,1730199144055,-151.0,0.00025,7]
[340976689,1730199144105,-151.0,0.00025,7]
[340976690,1730199144156,-151.0,0.00025,7]
[340976691,1730199144206,-582.033102,0.00025,7]
[340976692,1730199144256,-151.0,0.00025,7]
[340976693,1730199144305,-582.033102,0.00025,7]
[340976694,1730199144354,-151.0,0.00025,7]
[340976695,1730199144476,-151.0,0.00025,7]
[340976696,1730199144529,-151.0,0.00025,7]
[340976697,1730199144578,-151.0,0.00025,7]
[340976698,1730199144773,201.2770906,0.00023,2]
[340976699,1730199144958,150.01,0.00019999,2]
[340976700,1730199145029,345.48081633,0.000219,2]
[340976701,1730199145086,151.0,0.00023922,7]
[340976702,1730199145139,151.0,0.00025,7]
[340976703,1730199145195,151.0,0.00023922,7]
[340976704,1730199157907,273.073,0.00022718,2]
[340976705,1730199159973,213.967056,0.00023922,7]
[340976706,1730199178547,151.495081,0.00023922,7]
[340976707,1730199181529,300.0,0.00019725,2]
[340976708,1730199182312,420.0,0.00021484,2]
[340976709,1730199183199,587.0,0.00023401,2]
[340976710,1730199184245,200.0,0.00020197,2]
[340976711,1730199197395,150.01,0.00024999,2]
[340976712,1730199214865,-167.5,0.00025038,2]
[340976713,1730199215038,-241.737196,0.00025047,7]
[340976714,1730199215089,-241.737196,0.00025047,7]
[340976715,1730199215141,-561.0,0.00025049,2]
[340976716,1730199215193,-451.0,0.00025049,2]
[340976717,1730199215244,-1248.0,0.00025049,2]
[340976718,1730199215295,-557.0,0.00025049,2]
[340976719,1730199215346,-1982.0,0.00025049,2]
[340976720,1730199215396,-3367.0,0.00025049,2]
[340976721,1730199215447,-1914.0,0.00025049,2]
[340976722,1730199215499,-811.0,0.00025049,2]
[340976723,1730199215548,-807.0,0.00025049,2]
[340976724,1730199215598,-5000.0,0.000251,10]
[340976725,1730199215649,-500.0,0.00025183,2]
[340976726,1730199215700,-525.54,0.00025388,2]
[340976727,1730199215832,-1154.0,0.00025412,2]
[340976728,1730199215884,-5903.0,0.00025412,2]
[340976729,1730199215938,-13571.0,0.00025412,2]
[340976730,1730199215992,-1087.0,0.00025412,2]
[340976731,1730199216044,-502.26114535,0.00025452,2]
[340976732,1730199216096,-1000.0,0.000255,2]
[340976733,1730199216150,-150.174,0.00025718,2]
[340976734,1730199216201,-196.73,0.00025753,2]
[340976735,1730199216245,-4433.65,0.00026,2]
[340976736,1730199216295,-1572.06315421,0.00026,2]
[340976737,1730199216345,-517.39102438,0.0002604,2]
[340976738,1730199216397,-167.5,0.00026344,2]
[340976739,1730199216448,-11723.24357682,0.000264,2]
[340976740,1730199216498,-151.0,0.000264,7]
[340976741,1730199216547,-151.0,0.000264,7]
[340976742,1730199216676,-193.670813,0.000264,7]
[340976743,1730199216725,-151.0,0.000264,7]
[340976744,1730199216773,-166.033111,0.000264,7]
[340976745,1730199216821,-98956.89339409,0.00027,7]
[340976746,1730199216869,-500.0,0.00027,30]
[340976747,1730199216918,-500.0,0.00027,30]
[340976748,1730199216967,-785.32602948,0.00027,30]
[340976749,1730199217016,-241.737196,0.00027,7]
[340976750,1730199217066,-241.737204,0.00027,7]
[340976751,1730199217113,-850.0,0.00027,2]
[340976752,1730199217165,-151.0,0.00027,7]
[340976753,1730199217213,-297.87355,0.00027,7]
[340976754,1730199217264,-151.0,0.00027,7]
[340976755,1730199217312,-151.0,0.00027,7]
[340976756,1730199217439,-151.0,0.00027,7]
[340976757,1730199217488,-500.0,0.0002701,30]
[340976758,1730199217535,-500.0,0.0002701,30]
[340976759,1730199217586,-500.0,0.0002701,30]
[340976760,1730199217635,-500.0,0.0002701,30]
[340976761,1730199217681,-150.0,0.00027397,7]
[340976762,1730199217728,-152.609075,0.00027397,7]
[340976763,1730199217776,-151.0,0.00027397,7]
[340976764,1730199217826,-151.0,0.00027397,7]
[340976765,1730199217874,-153.834387,0.00027397,7]
[340976766,1730199217922,-250.0,0.00027397,2]
[340976767,1730199217972,-151.0,0.00027397,7]
[340976768,1730199218020,-151.0,0.00027397,7]
[340976769,1730199218068,-151.0,0.00027397,7]
[340976770,1730199218120,-304.5,0.00027397,10]
[340976771,1730199218252,-229.96,0.00027461,30]
[340976772,1730199218302,-158.25,0.00027507,2]
[340976773,1730199218352,-166.0,0.00027649,2]
[340976774,1730199218401,-167.5,0.00027649,2]
[340976775,1730199218448,-525.54,0.00027652,2]
[340976776,1730199218497,-1000.0,0.00027818,2]
[340976777,1730199218546,-451.10407682,0.00028,2]
[340976778,1730199218595,-151.0,0.00028048,7]
[340976779,1730199218644,-561.0,0.00028049,2]
[340976780,1730199218692,-451.0,0.00028049,2]
[340976781,1730199218742,-1248.0,0.00028049,2]
[340976782,1730199218791,-557.0,0.00028049,2]
[340976783,1730199218841,-348.074,0.00028049,2]
[340976784,1730199218890,-3367.0,0.00028049,2]
[340976785,1730199218940,-1914.0,0.00028049,2]
[340976786,1730199219072,-811.0,0.00028049,2]
[340976787,1730199219125,-807.0,0.00028049,2]
[340976788,1730199219174,-1154.0,0.00028412,2]
[340976789,1730199219224,-5903.0,0.00028412,2]
[340976790,1730199219276,-13571.0,0.00028412,2]
[340976791,1730199219328,-1087.0,0.00028412,2]
[340976792,1730199219376,-151.0,0.00028412,7]
[340976793,1730199219426,-1000.0,0.00028564,5]
[340976794,1730199219475,-1256.82156721,0.00029,3]
[340976795,1730199219526,-900.0,0.00029,2]
[340976796,1730199219723,253.75,0.00027397,10]
[340976797,1730199261421,453.0,0.00025,8]
[340976798,1730199268043,252.65748362,0.00028999,2]
[340976799,1730199302900,300.0,0.00019725,2]
[340976800,1730199303658,420.0,0.00021484,2]
[340976801,1730199304427,587.0,0.00023401,2]
[340976802,1730199305283,823.0,0.00025488,2]
[340976803,1730199306074,1152.0,0.00027761,2]
[340976804,1730199312905,1154.0,0.00020349,2]
[340976805,1730199313879,292.201,0.00023349,2]
[340976806,1730199317457,13571.0,0.00020349,2]
[340976807,1730199317902,13571.0,0.00023349,2]
[340976808,1730199319019,13571.0,0.00026349,2]
[340976809,1730199331048,1087.0,0.00020349,2]
[340976810,1730199331488,1087.0,0.00023349,2]
[340976811,1730199332432,506.064,0.00026349,2]
[340976812,1730199337537,-201.85,0.00033151,120]
[340976813,1730199337588,-206.96,0.00033701,120]
[340976814,1730199337638,-150.0,0.00035,120]
[340976815,1730199337806,-196.73,0.00035616,120]
[340976816,1730199337856,-251.4407086,0.00035887,120]
[340976817,1730199337907,-206.96,0.00036285,120]
[340976818,1730199337959,-2627.9,0.000371,30]
[340976819,1730199338010,-170.73212126,0.000372,103]
[340976820,1730199338069,-2627.9,0.000382,30]
[340976821,1730199338121,-206.96,0.00038869,120]
[340976822,1730199338170,-4680.71432054,0.0003888,90]
[340976823,1730199340427,172.75607701,0.00038941,30]
[340976824,1730199351371,-7448.3900117,0.00029021,2]
[340976825,1730199351420,-222.2457283,0.00029021,2]
[340976826,1730199351469,-196.73,0.00029041,2]
[340976827,1730199351518,-10290.463,0.00029349,2]
[340976828,1730199351569,-155.87,0.00029589,2]
[340976829,1730199351617,-19086.00328438,0.000299,2]
[340976830,1730199351667,-3500.0,0.000299,10]
[340976831,1730199351716,-166.44128582,0.000299,2]
[340976832,1730199351767,-151.0,0.00029915,7]
[340976833,1730199351815,-596.5,0.0003,3]
[340976834,1730199351864,-208.58889552,0.0003,2]
[340976835,1730199351910,-212.96655814,0.0003,2]
[340976836,1730199351959,-253.39815541,0.0003,2]
[340976837,1730199352093,-393.08933559,0.0003,2]
[340976838,1730199352146,-151.0,0.0003,7]
[340976839,1730199352195,-1613.0,0.00030237,2]
[340976840,1730199352248,-150.8,0.00030548,2]
[340976841,1730199352299,-163.57,0.00030548,2]
[340976842,1730199352349,-950.0,0.00031,2]
[340976843,1730199352397,-1414.87,0.00031038,2]
[340976844,1730199352447,-561.0,0.00031049,2]
[340976845,1730199352496,-451.0,0.00031049,2]
[340976846,1730199352544,-1248.0,0.00031049,2]
[340976847,1730199352593,-557.0,0.00031049,2]
[340976848,1730199352643,-3367.0,0.00031049,2]
[340976849,1730199352693,-1914.0,0.00031049,2]
[340976850,1730199352742,-811.0,0.00031049,2]
[340976851,1730199352793,-807.0,0.00031049,2]
[340976852,1730199352918,-953.754,0.00031412,2]
[340976853,1730199352969,-1414.87,0.0003142,2]
[340976854,1730199353020,-18573.72302485,0.0003143,4]
[340976855,1730199353074,-151.0,0.0003143,7]
[340976856,1730199353125,-341.6,0.00031572,2]
[340976857,1730199353175,-196.73,0.00032329,2]
[340976858,1730199353227,-151.0,0.00032629,7]
[340976859,1730199353277,-4582.15849251,0.000328,2]
[340976860,1730199353330,-500.0,0.00032876,2]
[340976861,1730199353378,-1414.87,0.00032924,2]
[340976862,1730199353428,-2258.0,0.00032934,2]
[340976863,1730199353479,-433.13,0.0003299,10]
[340976864,1730199353532,-1414.87,0.0003299,2]
[340976865,1730199353577,-360.94,0.0003299,10]
[340976866,1730199353710,-300.78,0.0003299,10]
[340976867,1730199353762,-24351.90813042,0.00033,2]
[340976868,1730199353812,-1000.0,0.00033,2]
[340976869,1730199353864,-151.0,0.00033,7]
[340976870,1730199353916,-406.85,0.00033699,2]
[340976871,1730199353969,-341.6,0.00033836,2]
[340976872,1730199354021,-1414.87,0.00034038,2]
[340976873,1730199354078,-561.0,0.00034049,2]
[340976874,1730199354130,-451.0,0.00034049,2]
[340976875,1730199354181,-1248.0,0.00034049,2]
[340976876,1730199354233,-557.0,0.00034049,2]
[340976877,1730199354283,-3367.0,0.00034049,2]
[340976878,1730199354334,-1914.0,0.00034049,2]
[340976879,1730199354384,-811.0,0.00034049,2]
[340976880,1730199354434,-731.187,0.00034049,2]
[340976881,1730199354563,-167.0,0.00034183,2]
[340976882,1730199354613,-150.0,0.00034548,10]
[340976883,1730199354663,-300.0,0.00034571,2]
[340976884,1730199354713,-3029.79522198,0.00035,7]
[340976885,1730199354761,-1050.0,0.00035,2]
[340976886,1730199354810,-167.0,0.00035311,2]
[340976887,1730199354860,-1000.0,0.00035616,2]
[340976888,1730199354910,-151.0,0.00035711,7]
[340976889,1730199354960,-3162.0,0.00035872,2]
[340976890,1730199355014,-300.0,0.00035941,2]
[340976891,1730199355072,-903.44646078,0.00036,2]
[340976892,1730199355121,-630.70826169,0.00036,2]
[340976893,1730199355174,-341.6,0.000361,2]
[340976894,1730199355225,-1414.87,0.00036275,2]
[340976895,1730199355352,-273.13,0.0003639,2]
[340976896,1730199355402,-167.0,0.00036439,2]
[340976897,1730199355452,-500.0,0.0003682,5]
[340976898,1730199355503,-415.67,0.00036849,2]
[340976899,1730199355548,-1548.46,0.00036849,2]
[340976900,1730199355599,-2855.1904062,0.00036948,15]
[340976901,1730199355649,-1100.0,0.00037,2]
[340976902,1730199355700,-298.241955,0.00037048,7]
[340976903,1730199355749,-561.0,0.00037049,2]
[340976904,1730199355797,-265.975,0.00037049,2]
[340976905,1730199355846,-551.0,0.00037049,2]
[340976906,1730199355895,-3367.0,0.00037049,2]
[340976907,1730199355948,-1914.0,0.00037049,2]
[340976908,1730199356001,-811.0,0.00037049,2]
[340976909,1730199356052,-167.0,0.00037568,2]
[340976910,1730199356181,-1414.87,0.0003758,2]
[340976911,1730199356230,-4135.28973036,0.0003759,2]
[340976912,1730199356281,-2855.19040618,0.00037688,15]
[340976913,1730199356331,-1414.87,0.0003789,2]
[340976914,1730199356379,-299.999999,0.000379,2]
[340976915,1730199356429,-15674.48445996,0.000379,2]
[340976916,1730199356480,-4400.0,0.000379,13]
[340976917,1730199356530,-156.45694785,0.000379,2]
[340976918,1730199356580,-345.48081633,0.000379,2]
[340976919,1730199356629,-1153.20452853,0.000379,2]
[340976920,1730199356678,-223.421648,0.000379,2]
[340976921,1730199356727,-435.73409437,0.000379,2]
[340976922,1730199356775,-1414.87,0.00037989,2]
[340976923,1730199356823,-1414.87,0.0003799,2]
[340976924,1730199356871,-500.0,0.00037999,15]
[340976925,1730199357001,-500.0,0.00037999,15]
[340976926,1730199357052,-500.0,0.00037999,15]
[340976927,1730199357103,-500.0,0.00037999,15]
[340976928,1730199357153,-500.0,0.00037999,15]
[340976929,1730199357204,-500.0,0.00037999,15]
[340976930,1730199357255,-500.0,0.00037999,15]
[340976931,1730199357306,-500.0,0.00037999,15]
[340976932,1730199357359,-500.0,0.00037999,15]
[340976933,1730199357410,-500.0,0.00037999,15]
[340976934,1730199357462,-500.0,0.00037999,15]
[340976935,1730199357511,-500.0,0.00037999,15]
[340976936,1730199357563,-500.0,0.00037999,15]
[340976937,1730199357613,-316.02068305,0.00037999,15]
[340976938,1730199357662,-10359.08760848,0.00038,10]
[340976939,1730199357711,-792529.2948696,0.00038,2]
[340976940,1730199361679,300.0,0.00019725,2]
[340976941,1730199363187,420.0,0.00021484,2]
[340976942,1730199364095,587.0,0.00023401,2]
[340976943,1730199365000,823.0,0.00025488,2]
[340976944,1730199366332,455.0,0.00027761,2]
[340976945,1730199382015,183.13,0.00038448,120]
[340976946,1730199382848,2335.91,0.000384,30]
[340976947,1730199397743,180.94609425,0.000153,2]
[340976948,1730199414132,-345.48081633,0.000379,2]
[340976949,1730199414184,-250.65,0.0003799,10]
[340976950,1730199414235,-150.01,0.00037999,2]
[340976951,1730199414287,-1950082.7051304,0.00038,2]
[340976952,1730199414336,-1193.77524267,0.00038,14]
[340976953,1730199419106,1626.0,0.000189,2]
[340976954,1730199441345,150.0,0.00038,37]
[340976955,1730199493480,158.25,0.00015342,2]
[340976957,1730199511155,405.006,0.00038356,51]
[340976960,1730199602693,250.0,0.00037833,120]
[340976961,1730199633922,326.62,0.00021249,2]
[340977028,1730199674450,1914.0,0.00019005,2]
[340977029,1730199674949,1523.677,0.00022005,2]
[340977030,1730199678589,170.73212126,0.000372,103]
[340977031,1730199678733,424.07,0.00019005,2]
[340977178,1730199708773,811.0,0.00019081,2]
[340977179,1730199709367,810.0,0.00022081,2]
[340977180,1730199721581,1817.0,0.000189,2]
[340977254,1730199813445,854.564829,0.000389,37]
[340977294,1730199818949,175.91,0.0003802,120]
[340977313,1730199869917,176.14,0.00037783,120]
[340977314,1730199886204,161.48,0.00037787,120]
[340977594,1730200031838,550.0,0.00015,2]
[340977595,1730200032943,600.0,0.00017,2]
[340977596,1730200034032,650.0,0.00019,2]
[340977597,1730200035104,700.0,0.00021,2]
[340977598,1730200036188,750.0,0.00023,2]
[340977599,1730200037272,800.0,0.00025,2]
[340977600,1730200038359,850.0,0.00027,2]
[340977601,1730200039558,900.0,0.00029,2]
[340977614,1730200231701,-500.0,0.00029021,2]
[340977615,1730200231712,-500.0,0.00029021,2]
[340977616,1730200231722,-500.0,0.00029021,2]
[340977617,1730200231731,-404.2569678,0.00029021,2]
[340977618,1730200231974,-95.7430322,0.00029021,2]
[340977619,1730200231983,-454.49,0.00029021,2]
[340977620,1730200232008,-45.51,0.00029021,2]
[340977621,1730200232019,-405.23,0.00029021,2]
[340977622,1730200232031,-94.77,0.00029021,2]
[340977623,1730200232040,-158.25,0.00030548,2]
[340977624,1730200232050,-950.0,0.00031,2]
[340977625,1730200232059,-500.0,0.00032876,2]
[340977626,1730200232069,-500.05939221,0.00033,2]
[340977627,1730200232080,-499.94060779,0.00033,2]
[340977628,1730200232089,-1050.0,0.00035,2]
[340977629,1730200232100,-1000.0,0.00035616,2]
[340977630,1730200232111,-290.36,0.00035886,2]
[340977631,1730200232121,-1100.0,0.00037,2]
[340977632,1730200232130,-250.0,0.00037705,2]
[340977633,1730200232140,-1000.0,0.00037705,2]
[340977634,1730200232151,-150.0,0.00037787,7]
[340977635,1730200232162,-1000.0,0.00037835,2]
[340977636,1730200232171,-1875.64154619,0.00037842,2]
[340977737,1730200237835,-1051.74850456,0.00037842,2]
[340978156,1730200242477,-19316.24014369,0.00037842,2]
[340978195,1730200242911,-1656.36980556,0.00037842,2]
[340978197,1730200242921,-207.34970627,0.00037999,2]
[340978199,1730200242930,-152.0,0.00038009,3]
[340978201,1730200242940,-290.36,0.0003815,2]
[340978203,1730200242951,-150.8,0.00038151,2]
[340978205,1730200242960,-1500.0,0.00038356,2]
[340978207,1730200242971,-6388.76031072,0.00038356,2]
[340978682,1730200247999,250.0,0.00037886,120]
[340978709,1730200373444,381.40593076,0.00038191,120]
[340978710,1730200400684,183.13,0.00037886,120]
[340978711,1730200405482,150.0,0.000389,37]
[340978712,1730200430609,167.11,0.00038091,120]
[340978713,1730200442196,768.0,0.00039,30]
[340978714,1730200540374,152.84337282,0.00039,30]
[340978716,1730200592385,580.0,0.0003,60]
[340978718,1730200625773,1635.0,0.000189,2]
[340978719,1730200626599,1472.0,0.000189,2]
[340978722,1730200686065,431.29352649,0.00018,2]
[340978723,1730200686537,152.46,0.00015342,2]
[340978724,1730200686773,152.46,0.00022945,2]
[340978725,1730200711336,324.005,0.00038355,51]
[340978726,1730200716503,150.0,0.00029,2]
[340978727,1730200920455,161.48,0.00037795,120]
[340978728,1730200993382,158.75,0.00038014,120]
[340978729,1730201036666,250.0,0.00037815,120]
[340978730,1730201108244,141643.62704971,0.00016,2]
[340978731,1730201109181,169.0,0.00039,30]
[340978732,1730201131989,997.24275647,0.000153,2]
[340978738,1730201155655,631.11968448,0.000159,2]
[340978739,1730201209388,163.57,0.00015342,2]
[340978741,1730201229669,952.05497628,0.000153,2]
[340978746,1730201251784,10032.74378367,0.0001513,2]
[340978747,1730201308909,379.51383271,0.000156,2]
[340978748,1730201326968,481.5638667,0.000154,2]
[340978749,1730201327170,2870.86315987,0.0001575,2]
[340978802,1730201431887,-400.0,0.0003,2]
[340978803,1730201431896,-152.46,0.00030548,2]
[340978804,1730201431906,-163.57,0.00035616,2]
[340978805,1730201431915,-261.32,0.00035912,2]
[340978806,1730201431926,-5726.91046272,0.00037747,2]
[340978807,1730201431943,-1316.85,0.00037747,2]
[340978808,1730201431956,-1735.32953728,0.00037747,2]
[340978809,1730201431967,-809.25,0.00037751,2]
[340978810,1730201431976,-199.42046272,0.00037807,2]
[340978815,1730201438049,-50.57953728,0.00037807,2]
[340978816,1730201438059,-690.06353657,0.00037807,2]
[340978817,1730201438071,-3338.94646343,0.00037807,2]
[340978818,1730201438080,-150.0,0.00037815,7]
[340978819,1730201438090,-999.99,0.00037815,2]
[340978820,1730201438100,-150.99,0.00037853,2]
[340978821,1730201438111,-1782.33,0.00037853,2]
[340978822,1730201438121,-328.81,0.00037853,2]
[340978823,1730201438131,-604.9,0.00037853,2]
[340978824,1730201438141,-2286.56,0.00037856,2]
[340978825,1730201438150,-793.15,0.00037856,2]
[340978826,1730201438159,-1078.32,0.00037856,20]
[340978827,1730201438169,-605.76,0.00037856,2]
[340978828,1730201438179,-1000.0,0.00037871,2]
[340978829,1730201438188,-152.46,0.00038151,2]
[340978830,1730201438197,-261.32,0.00038176,2]
[340978831,1730201438207,-1091.42706126,0.00038256,2]
[340978832,1730201438216,-152.0,0.00038291,3]
[340978833,1730201438226,-300.0,0.00038355,4]
[340978834,1730201438235,-2138.08,0.00038356,2]
[340978835,1730201438244,-2887.10501524,0.00038356,2]
[340978836,1730201438256,-291.90056592,0.00038356,2]
[340978837,1730201438267,-15012.97213533,0.00038356,2]
[340978845,1730201440200,-256.19502753,0.00038356,2]
[340978846,1730201440211,-18864.02725598,0.00038356,2]
[340978847,1730201440220,-500.0,0.00038462,14]
[340978848,1730201440229,-523.0,0.00038462,14]
[340978849,1730201440239,-150.0,0.00038686,2]